bitfinex-derivatives/quotes_BTCF0:USTF0_20250212
["timestamp","ask_amount","ask_price","bid_price","bid_amount"]
[1739383209125,0.0744,97467.0,97458.0,0.3608]
[1739383209331,0.2795687,97467.0,97466.0,0.3608]
[1739383209633,0.0744,97467.0,97466.0,0.3608]
[1739383209926,0.0744,97467.0,97466.0,0.5659708]
[1739383210823,0.2795687,97467.0,97466.0,0.5659708]
[1739383211223,0.2795687,97467.0,97466.0,0.5669708]
[1739383211423,0.2795687,97467.0,97466.0,0.3618]
[1739383212119,0.2795687,97467.0,97466.0,0.2429]
[1739383214824,0.0744,97467.0,97466.0,0.2429]
[1739383215026,0.0744,97467.0,97466.0,0.4480708]
[1739383215625,0.0744,97467.0,97466.0,0.001]
[1739383215626,0.2795687,97467.0,97466.0,0.001]
[1739383215924,5.928e-05,97468.0,97466.0,0.001]
[1739383216134,5.928e-05,97468.0,97467.0,0.5659687]
[1739383216432,0.1,97500.0,97499.0,0.2051014]
[1739383216633,0.1,97500.0,97499.0,0.5659014]
[1739383216930,0.2051066,97497.0,97494.0,0.3608]
[1739383217128,0.2051066,97497.0,97490.0,0.00015385]
[1739383217129,0.205117,97492.0,97490.0,0.00015385]
[1739383218021,0.2051542,97474.0,97472.0,0.3608]
[1739383218229,0.0716,97473.0,97472.0,0.3608]
[1739383218821,0.0716,97473.0,97464.0,0.2051744]
[1739383218822,0.2051687,97467.0,97464.0,0.2051744]
[1739383219225,0.2051687,97467.0,97460.0,0.3608]
[1739383219526,0.2051798,97462.0,97460.0,0.3608]
[1739383220128,0.1961798,97462.0,97460.0,0.3608]
[1739383221037,0.1941798,97462.0,97460.0,0.3628]
[1739383222632,0.1941798,97462.0,97460.0,0.3658]
[1739383223330,0.1981798,97462.0,97460.0,0.3628]
[1739383223731,0.1981798,97462.0,97460.0,0.3608]
[1739383223934,0.2051814,97461.0,97460.0,0.3608]
[1739383224128,0.2051814,97461.0,97460.0,0.3628]
[1739383224637,0.2051814,97461.0,97460.0,0.002]
[1739383225633,0.001,97462.0,97457.0,0.00015385]
[1739383225933,0.001,97462.0,97436.0,0.3608]
[1739383225934,0.2052319,97437.0,97436.0,0.3608]
[1739383226137,0.3608,97458.0,97424.0,0.3608]
[1739383226138,0.12158464,97446.0,97424.0,0.36172]
[1739383226439,0.205229,97439.0,97438.0,0.3608]
[1739383226634,0.2052195,97443.0,97438.0,0.3608]
[1739383226839,0.2052195,97443.0,97440.0,0.2052251]
[1739383227034,0.1515,97445.0,97438.0,0.3608]
[1739383227338,0.2052259,97440.0,97438.0,0.3608]
[1739383227732,0.2052277,97439.0,97438.0,0.3608]
[1739383228326,0.2052277,97439.0,97438.0,0.3628]
[1739383228932,0.2052277,97439.0,97438.0,0.3708]
[1739383229131,0.001,97445.0,97438.0,0.3708]
[1739383229435,0.001,97445.0,97444.0,0.2052172]
[1739383230035,0.001,97445.0,97444.0,0.21805016]
[1739383230227,0.3608,97476.0,97444.0,0.01283263]
[1739383230428,0.12158464,97470.0,97452.0,0.3608]
[1739383230626,0.2051778,97463.0,97458.0,0.2051865]
[1739383231037,0.2051778,97463.0,97461.0,0.3608]
[1739383231236,0.2051982,97453.0,97452.0,0.3608]
[1739383231433,0.2051982,97453.0,97452.0,0.36095393]
[1739383232333,0.2051982,97453.0,97452.0,0.36495393]
[1739383232534,0.21531102,97453.0,97452.0,0.36495393]
[1739383233038,0.21531102,97453.0,97452.0,0.00415393]
[1739383233931,0.21531102,97453.0,97452.0,0.00015393]
[1739383237843,0.2052593,97424.0,97422.0,0.18299589]
[1739383239953,0.2052593,97424.0,97423.0,0.02253957]
[1739383240459,0.21524614,97424.0,97423.0,0.02253957]
[1739383240650,0.21624614,97424.0,97423.0,0.00153957]
[1739383241747,0.2062593,97424.0,97423.0,0.00153957]
[1739383241954,0.001,97424.0,97423.0,0.56760097]
[1739383243047,0.00015393,97433.0,97432.0,0.2052424]
[1739383243244,0.00015393,97433.0,97432.0,0.5660424]
[1739383243645,0.3608,97459.0,97432.0,0.5660424]
[1739383243646,0.17287564,97470.0,97441.0,0.2052227]
[1739383243843,0.2052063,97450.0,97444.0,0.3608]
[1739383244055,0.2052141,97446.0,97444.0,0.3608]
[1739383244459,0.12158464,97460.0,97442.0,0.0785]
[1739383244460,0.3608,97454.0,97442.0,0.0785]
[1739383244649,0.2052193,97443.0,97442.0,0.0785]
[1739383246053,0.12158464,97452.0,97440.0,0.3608]
[1739383246257,0.2052277,97439.0,97438.0,0.00015393]
[1739383247362,0.3628,97439.0,97423.0,0.00153957]
[1739383247562,0.2052593,97424.0,97423.0,0.00153957]
[1739383249962,0.21529597,97424.0,97423.0,0.00153957]
[1739383250468,0.21929597,97424.0,97423.0,0.00153957]
[1739383251661,0.2052781,97415.0,97414.0,0.00015393]
[1739383253567,0.2052781,97415.0,97414.0,0.00315393]
[1739383255658,0.2052986,97406.0,97397.0,0.18299589]
[1739383255858,0.3608,97408.0,97397.0,0.18299589]
[1739383256063,0.2053141,97398.0,97397.0,0.18299589]
[1739383256866,0.2053141,97398.0,97397.0,0.20299589]
[1739383257160,0.2053141,97398.0,97397.0,0.02]
[1739383257459,0.2053141,97398.0,97397.0,0.005]
[1739383257666,0.2053141,97398.0,97397.0,0.02]
[1739383258568,0.21543678,97398.0,97397.0,0.02]
[1739383260160,0.21543678,97398.0,97397.0,0.005]
[1739383260475,0.2053247,97393.0,97392.0,0.18299589]
[1739383261068,0.2033247,97393.0,97392.0,0.18299589]
[1739383261372,0.2053331,97389.0,97388.0,0.00015401]
[1739383263472,0.2053668,97373.0,97371.0,0.00154]
[1739383264072,0.205369,97372.0,97371.0,0.00154]
[1739383264473,0.2053753,97369.0,97368.0,0.18299589]
[1739383265073,0.1923753,97369.0,97368.0,0.18299589]
[1739383266066,0.1923753,97369.0,97364.0,0.3608]
[1739383266067,0.2013837,97365.0,97364.0,0.3608]
[1739383266576,0.2013837,97365.0,97362.0,0.00015401]
[1739383266577,0.205388,97363.0,97362.0,0.00015401]
[1739383266978,0.191388,97363.0,97362.0,0.00015401]
[1739383267275,0.184388,97363.0,97362.0,0.00015401]
[1739383267777,0.185388,97363.0,97362.0,0.01415401]
[1739383268074,0.185388,97363.0,97362.0,0.02115401]
[1739383271282,0.19559174,97363.0,97362.0,0.02115401]
[1739383271580,0.19559174,97363.0,97347.0,0.3608]
[1739383271581,0.2054196,97348.0,97347.0,0.3608]
[1739383272869,0.2054364,97341.0,97338.0,0.20559381]
[1739383273071,0.2054257,97346.0,97339.0,0.2054382]
[1739383273369,0.001,97348.0,97342.0,0.2054318]
[1739383273570,0.001,97348.0,97338.0,0.00015401]
[1739383273969,0.001,97348.0,97347.0,0.2054217]
[1739383274170,0.002,97348.0,97347.0,0.2054217]
[1739383274976,0.002,97348.0,97346.0,0.1376]
[1739383275173,0.002,97348.0,97347.0,0.2054217]
[1739383275873,0.003,97348.0,97347.0,0.2054217]
[1739383276275,0.002,97348.0,97347.0,0.2054217]
[1739383276477,0.003,97348.0,97347.0,0.2054217]
[1739383276683,0.001,97348.0,97347.0,0.2054217]
[1739383276981,0.003,97348.0,97347.0,0.22148016]
[1739383279877,0.003,97348.0,97347.0,0.2054217]
[1739383281277,0.003,97348.0,97347.0,0.22148016]
[1739383281473,0.003,97348.0,97347.0,0.01605846]
[1739383282282,0.2054386,97339.0,97338.0,0.00015401]
[1739383283581,0.2084386,97339.0,97338.0,0.00015401]
[1739383285183,0.20839586,97339.0,97338.0,0.00015401]
[1739383285683,0.20839586,97339.0,97338.0,0.01621473]
[1739383285881,0.20839586,97339.0,97338.0,0.00015401]
[1739383287588,0.20839586,97339.0,97338.0,0.01621492]
[1739383288582,0.0132171,97339.0,97338.0,0.22165572]
[1739383288990,0.0132171,97339.0,97338.0,0.22165543]
[1739383289387,0.2186558,97339.0,97338.0,0.01621463]
[1739383291388,0.2186558,97339.0,97338.0,0.00015401]
[1739383292589,0.2226558,97339.0,97338.0,0.00015401]
[1739383293084,0.2216558,97339.0,97338.0,0.00015401]
[1739383293289,0.2246558,97339.0,97338.0,0.01621507]
[1739383293493,0.2246558,97339.0,97338.0,0.00015401]
[1739383293494,0.2256558,97339.0,97338.0,0.00015401]
[1739383294078,0.2256558,97339.0,97338.0,0.01621507]
[1739383296089,0.2256558,97339.0,97338.0,0.00015401]
[1739383296279,0.2054638,97327.0,97326.0,0.54379589]
[1739383296479,0.2054638,97327.0,97326.0,0.19905776]
[1739383296985,0.2054638,97327.0,97326.0,0.18299589]
[1739383297294,0.2064638,97327.0,97326.0,0.18299589]
[1739383298390,0.21654037,97327.0,97326.0,0.18299589]
[1739383299290,0.2054681,97325.0,97324.0,0.18299589]
[1739383299895,0.2054681,97325.0,97324.0,9e-08]
[1739383299896,0.5662681,97325.0,97324.0,9e-08]
[1739383300190,0.5662681,97325.0,97300.0,0.1]
[1739383300191,0.2055187,97301.0,97300.0,0.1]
[1739383300378,0.2055187,97301.0,97300.0,0.1160673]
[1739383300586,0.3608,97313.0,97300.0,0.1160673]
[1739383300782,0.3608,97313.0,97301.0,0.1543673]
[1739383300985,0.2055155,97303.0,97301.0,0.1383]
[1739383301790,0.12158464,97311.0,97300.0,0.1]
[1739383301986,0.2055188,97301.0,97300.0,0.1]
[1739383303497,0.2065188,97301.0,97300.0,0.1]
[1739383304891,0.2165362,97301.0,97300.0,0.1]
[1739383306497,0.2245362,97301.0,97300.0,0.1]
[1739383306899,0.2055483,97287.0,97286.0,0.1383]
[1739383307296,0.0513828,97295.0,97276.0,0.0708]
[1739383307501,0.12158464,97290.0,97277.0,0.01285563]
[1739383307695,0.2055617,97281.0,97278.0,0.01285563]
[1739383307908,0.2055617,97281.0,97279.0,0.01285561]
[1739383308098,0.12158464,97290.0,97274.0,0.0694]
[1739383308099,0.3608,97288.0,97274.0,0.0694]
[1739383308300,0.2055758,97274.0,97273.0,0.3608]
[1739383308507,0.2055779,97273.0,97257.0,0.0689]
[1739383308697,0.2055779,97273.0,97256.0,0.2056124]
[1739383308902,0.2055779,97273.0,97251.0,0.14595333]
[1739383308903,0.2055779,97273.0,97251.0,0.3416241]
[1739383309610,0.2055779,97273.0,97251.0,0.136]
[1739383309799,0.2056223,97252.0,97251.0,0.136]
[1739383311806,0.21600582,97252.0,97251.0,0.136]
[1739383312015,0.21900582,97252.0,97251.0,0.136]
[1739383312211,0.01338352,97252.0,97249.0,0.3608]
[1739383312510,0.2056265,97250.0,97249.0,0.3608]
[1739383312900,0.01338352,97252.0,97237.0,0.0665]
[1739383313107,0.3608,97247.0,97237.0,0.0665]
[1739383313504,0.205639,97245.0,97238.0,0.3608]
[1739383313708,0.006,97250.0,97245.0,0.2056368]
[1739383314004,0.006,97250.0,97238.0,0.3608]
[1739383314005,0.2056319,97248.0,97246.0,0.3608]
[1739383315197,0.001,97247.0,97246.0,0.3608]
[1739383315402,0.07792,97247.0,97238.0,0.3608]
[1739383315809,0.2056495,97239.0,97238.0,0.3608]
[1739383316914,0.2116495,97239.0,97238.0,0.3608]
[1739383317111,0.2136495,97239.0,97238.0,0.3608]
[1739383317618,0.2116495,97239.0,97238.0,0.3608]
[1739383318307,0.2136495,97239.0,97238.0,0.3608]
[1739383318509,0.2086495,97239.0,97238.0,0.3608]
[1739383319212,0.2136495,97239.0,97238.0,0.3608]
[1739383319712,0.2056538,97237.0,97236.0,0.00154183]
[1739383320013,0.3608,97237.0,97219.0,0.2056917]
[1739383320213,0.2056813,97224.0,97219.0,0.2056917]
[1739383320408,0.12158464,97230.0,97216.0,0.0686]
[1739383320615,0.2056982,97216.0,97215.0,0.3608]
[1739383321205,0.2057194,97206.0,97201.0,0.0659]
[1739383322412,0.2077194,97206.0,97201.0,0.0659]
[1739383322917,0.2077194,97206.0,97200.0,0.1]
[1739383323112,0.2057299,97201.0,97200.0,0.1]
[1739383323504,0.3608,97201.0,97199.0,0.00154301]
[1739383323817,0.205732,97200.0,97199.0,0.00154301]
[1739383325101,0.2057618,97186.0,97185.0,0.3608]
[1739383325614,0.2057851,97175.0,97174.0,0.3608]
[1739383327014,0.2057851,97175.0,97168.0,0.00092]
[1739383327015,0.2057977,97169.0,97168.0,0.00092]
[1739383327211,0.2058072,97165.0,97158.0,0.3608]
[1739383327512,0.37114918,97175.0,97159.0,0.0160886]
[1739383327714,0.12158464,97170.0,97160.0,0.01608893]
[1739383327909,0.12158464,97170.0,97158.0,0.3608]
[1739383328112,0.2058147,97161.0,97158.0,0.3608]
[1739383329213,0.2068147,97161.0,97158.0,0.3608]
[1739383329516,0.001,97161.0,97158.0,0.3608]
[1739383329708,0.07692,97160.0,97159.0,0.2058188]
[1739383329908,0.001,97161.0,97159.0,0.22190803]
[1739383330108,0.001,97161.0,97159.0,0.2058188]
[1739383330529,0.2068152,97161.0,97159.0,0.2058188]
[1739383331016,0.2058187,97160.0,97158.0,0.3608]
[1739383331214,0.2058187,97160.0,97159.0,0.01608917]
[1739383331410,0.2058187,97160.0,97158.0,0.3608]
[1739383331914,0.2058187,97160.0,97159.0,1.5]
[1739383332109,0.2058187,97160.0,97158.0,0.3608]
[1739383332319,0.2068187,97160.0,97158.0,0.3608]
[1739383332908,0.00015436,97171.0,97159.0,0.01608978]
[1739383333119,0.00015436,97171.0,97170.0,0.5665955]
[1739383333313,0.00015436,97171.0,97170.0,0.58268231]
[1739383333511,0.2057696,97183.0,97178.0,0.2057772]
[1739383333708,0.7608,97188.0,97187.0,0.2057595]
[1739383333908,0.76136001,97188.0,97187.0,0.58264378]
[1739383334114,0.76136001,97188.0,97187.0,0.5665595]
[1739383334115,0.00056001,97188.0,97187.0,0.5665595]
[1739383334320,0.01011179,97196.0,97187.0,0.58264354]
[1739383334521,0.2057404,97196.0,97195.0,0.3608]
[1739383334819,0.2057404,97196.0,97195.0,0.5665425]
[1739383335016,0.00015436,97201.0,97195.0,0.3608]
[1739383335217,0.20588416,97201.0,97200.0,0.205732]
[1739383335813,0.00015436,97201.0,97200.0,0.205732]
[1739383336813,0.2056919,97219.0,97218.0,0.205684]
[1739383337327,0.2056919,97219.0,97218.0,0.566484]
[1739383337617,0.76088,97229.0,97228.0,0.2056727]
[1739383337818,0.76088,97229.0,97228.0,0.5664727]
[1739383338026,0.2056552,97237.0,97236.0,0.2056558]
[1739383338612,0.2056675,97231.0,97228.0,0.3608]
[1739383338821,0.2056675,97231.0,97230.0,0.2056664]
[1739383340422,0.2056704,97229.0,97228.0,0.3608]
[1739383340930,0.0312905,97237.0,97210.0,0.3608]
[1739383340931,0.0514168,97231.0,97210.0,0.3608]
[1739383341118,0.0514189,97227.0,97210.0,0.3608]
[1739383341718,0.2057086,97211.0,97210.0,0.3608]
[1739383343422,0.2057107,97210.0,97202.0,0.3608]
[1739383344630,0.2157107,97210.0,97207.0,0.01548]
[1739383344928,0.2207107,97210.0,97207.0,0.01548]
[1739383345929,0.2197107,97210.0,97207.0,0.0237]
[1739383346131,0.2097107,97210.0,97207.0,0.0237]
[1739383346328,0.2227107,97210.0,97207.0,0.0237]
[1739383346627,0.2056825,97224.0,97209.0,0.37703586]
[1739383346823,0.2056825,97224.0,97223.0,0.3608]
[1739383347219,0.77183495,97238.0,97223.0,0.3608]
[1739383347425,0.2056761,97227.0,97223.0,0.3608]
[1739383347722,0.001,97224.0,97223.0,0.3608]
[1739383347922,0.2066811,97224.0,97223.0,0.3608]
[1739383348925,0.2056993,97216.0,97211.0,0.3608]
[1739383349128,0.001,97224.0,97211.0,0.3608]
[1739383349326,0.2057015,97215.0,97212.0,0.2057064]
[1739383349726,0.003,97224.0,97212.0,0.2057064]
[1739383349921,0.01298842,97224.0,97212.0,0.2057064]
[1739383350125,0.2057064,97212.0,97211.0,0.3678]
[1739383350534,0.2057064,97212.0,97211.0,0.007]
[1739383350834,0.2057064,97212.0,97209.0,0.00015436]
[1739383350835,0.54420492,97221.0,97212.0,0.003]
[1739383351023,0.0514238,97218.0,97212.0,0.003]
[1739383351831,0.2057043,97213.0,97212.0,0.003]
[1739383352432,0.2057106,97210.0,97209.0,0.00015436]
[1739383354835,0.2107106,97210.0,97209.0,0.00015436]
[1739383355236,0.2057106,97210.0,97209.0,0.00015436]
[1739383355432,0.2117106,97210.0,97209.0,0.00015436]
[1739383355635,0.2217106,97210.0,97209.0,0.00015436]
[1739383355836,0.2157106,97210.0,97209.0,0.00015436]
[1739383356032,0.016,97210.0,97203.0,0.04115]
[1739383356236,0.2057149,97208.0,97203.0,0.04115]
[1739383357035,0.01610991,97210.0,97201.0,0.01372807]
[1739383357338,0.0514411,97185.0,97167.0,0.06]
[1739383357541,0.2057995,97168.0,97167.0,0.06]
[1739383357939,0.0768,97176.0,97167.0,0.06]
[1739383358244,0.0768,97176.0,97174.0,0.2057849]
[1739383358438,0.2057821,97177.0,97174.0,0.2057849]
[1739383358633,0.00015436,97181.0,97171.0,0.3608]
[1739383358943,0.00015436,97181.0,97180.0,0.5665741]
[1739383359142,0.01026124,97181.0,97180.0,0.5665741]
[1739383359441,0.00015436,97181.0,97180.0,0.5665741]
[1739383360241,0.00015436,97181.0,97180.0,0.5685741]
[1739383360442,0.00010465,97181.0,97180.0,0.5685741]
[1739383360948,0.00010465,97181.0,97180.0,0.5695741]
[1739383361135,0.00010465,97181.0,97180.0,0.58244256]
[1739383361441,0.0664,97205.0,97180.0,0.37666776]
[1739383361645,0.2057445,97194.0,97193.0,0.3608]
[1739383362743,0.2057445,97194.0,97193.0,0.5665466]
[1739383363141,0.2097445,97194.0,97193.0,0.3608]
[1739383364146,0.2177445,97194.0,97193.0,0.3608]
[1739383364338,0.2057685,97183.0,97181.0,0.2710416]
[1739383364545,0.2057678,97183.0,97182.0,0.01286835]
[1739383365239,0.2057678,97183.0,97181.0,0.06527]
[1739383365240,0.12200911,97191.0,97181.0,0.00017]
[1739383365440,0.008,97194.0,97183.0,0.2057659]
[1739383365639,0.12200911,97200.0,97183.0,0.2057659]
[1739383365640,0.2057625,97186.0,97183.0,0.2057659]
[1739383365835,0.12200911,97193.0,97181.0,0.00017]
[1739383366042,0.001,97183.0,97181.0,0.00017]
[1739383366645,0.12200911,97191.0,97181.0,0.00017]
[1739383367845,0.0636,97193.0,97181.0,0.00017]
[1739383368247,0.001,97183.0,97181.0,0.2059414]
[1739383368638,0.001,97183.0,97181.0,0.00017]
[1739383368838,0.008,97191.0,97181.0,0.00017]
[1739383369442,0.006,97191.0,97181.0,0.00017]
[1739383369643,0.2057622,97186.0,97181.0,0.00117]
[1739383370344,0.2057649,97185.0,97181.0,0.00017]
[1739383370647,0.2057669,97184.0,97181.0,0.00017]
[1739383371949,0.2057688,97183.0,97181.0,0.00017]
[1739383372544,0.2057688,97183.0,97182.0,0.02572]
[1739383373556,0.2127688,97183.0,97182.0,0.02572]
[1739383373749,0.2127688,97183.0,97181.0,0.00017]
[1739383374052,0.2167688,97183.0,97181.0,0.00017]
[1739383374256,0.2237688,97183.0,97181.0,0.00017]
[1739383375451,0.2227688,97183.0,97181.0,0.00017]
[1739383375751,0.2087688,97183.0,97181.0,0.00017]
[1739383376055,0.2267688,97183.0,97181.0,0.00017]
[1739383376758,0.021,97183.0,97181.0,0.00017]
[1739383376951,0.021,97183.0,97181.0,0.2059415]
[1739383378956,0.021,97183.0,97182.0,0.00386]
[1739383378957,0.001,97183.0,97182.0,0.00386]
[1739383379262,0.01,97200.0,97198.0,0.2057348]
[1739383379461,0.01,97200.0,97199.0,0.3608]
[1739383379761,0.08676,97200.0,97199.0,0.43123]
[1739383379966,0.01,97200.0,97199.0,0.43123]
[1739383381654,0.013,97200.0,97199.0,0.43123]
[1739383382157,0.017,97200.0,97199.0,0.43123]
[1739383382752,0.017,97200.0,97199.0,0.44409589]
[1739383383763,0.2056903,97220.0,97218.0,0.2056933]
[1739383384467,0.01006174,97227.0,97215.0,0.3608]
[1739383384763,0.76144001,97230.0,97215.0,0.2057]
[1739383384956,0.2057043,97214.0,97212.0,0.0626]
[1739383385263,0.2057065,97212.0,97211.0,0.00015436]
[1739383386563,0.2177065,97212.0,97211.0,0.00115436]
[1739383387767,0.2237065,97212.0,97211.0,0.00215436]
[1739383388066,0.2237065,97212.0,97211.0,0.00259436]
[1739383388956,0.23392224,97212.0,97211.0,0.00259436]
[1739383389468,0.2057319,97200.0,97199.0,1.55152241]
[1739383389657,0.5665319,97200.0,97199.0,1.55152241]
[1739383390059,0.5665319,97200.0,97199.0,1.59267241]
[1739383390966,0.5695319,97200.0,97199.0,1.59267241]
[1739383391265,0.5695319,97200.0,97199.0,1.09449097]
[1739383391266,0.8695319,97200.0,97199.0,1.09449097]
[1739383391461,1.6304119,97200.0,97199.0,0.71099872]
[1739383391759,1.6304119,97200.0,97199.0,0.06224682]
[1739383391964,1.6304119,97200.0,97199.0,0.02634682]
[1739383392168,1.6304119,97200.0,97197.0,0.00655]
[1739383392169,0.2057361,97198.0,97197.0,0.00655]
[1739383392356,0.5665361,97198.0,97197.0,0.00655]
[1739383392555,0.8665361,97198.0,97197.0,0.00655]
[1739383393462,0.8685361,97198.0,97197.0,0.00655]
[1739383394565,0.5685361,97198.0,97197.0,0.00655]
[1739383394865,0.5705361,97198.0,97197.0,0.00655]
[1739383395068,0.8705361,97198.0,97197.0,0.00655]
[1739383395461,0.5735361,97198.0,97197.0,0.00655]
[1739383395667,0.66832405,97198.0,97197.0,0.00655]
[1739383395867,0.68132405,97198.0,97197.0,0.00755]
[1739383396072,0.68332405,97198.0,97197.0,0.00755]
[1739383396362,0.2057552,97189.0,97188.0,0.01140436]
[1739383396566,0.5665552,97189.0,97188.0,0.01140436]
[1739383396765,0.2057679,97183.0,97182.0,0.00386]
[1739383397156,0.3608,97186.0,97152.0,0.06229699]
[1739383397356,0.3608,97166.0,97164.0,0.00154369]
[1739383397573,0.205806,97165.0,97164.0,0.00154369]
[1739383397755,0.3608,97166.0,97152.0,0.0618]
[1739383398073,0.205823,97157.0,97152.0,0.0618]
[1739383399570,0.001,97157.0,97153.0,0.3326313]
[1739383399764,0.07872,97157.0,97153.0,0.3326313]
[1739383400366,0.2058167,97160.0,97153.0,0.1268]
[1739383400554,0.1060167,97160.0,97156.0,0.5716243]
[1739383401368,0.001,97157.0,97156.0,0.5716243]
[1739383401869,0.1070167,97160.0,97156.0,0.5716243]
[1739383402067,0.001,97160.0,97156.0,0.3658]
[1739383402263,0.2058215,97158.0,97156.0,0.3658]
[1739383402457,0.205823,97157.0,97156.0,0.3668]
[1739383402867,0.205823,97157.0,97156.0,0.3658]
[1739383403475,0.206823,97157.0,97156.0,0.3658]
[1739383404464,0.208823,97157.0,97156.0,0.3658]
[1739383404968,0.206823,97157.0,97156.0,0.3658]
[1739383405273,0.207823,97157.0,97156.0,0.005]
[1739383406572,0.2058293,97154.0,97153.0,0.1268]
[1739383406768,0.5666293,97154.0,97153.0,0.1268]
[1739383407573,0.5656293,97154.0,97153.0,0.1268]
[1739383408667,0.2058194,97159.0,97156.0,0.2058245]
[1739383408862,0.00015436,97163.0,97153.0,0.1268]
[1739383409064,0.76108,97184.0,97162.0,0.3608]
[1739383409269,0.3608,97201.0,97183.0,0.3608]
[1739383409670,0.12200911,97193.0,97183.0,0.5665664]
[1739383409881,0.2057518,97191.0,97183.0,0.5665664]
[1739383410078,0.12200911,97193.0,97184.0,0.2057638]
[1739383410376,0.2057605,97187.0,97184.0,0.3608]
[1739383410676,0.12200911,97193.0,97184.0,0.3608]
[1739383410875,0.2057574,97188.0,97184.0,0.3608]
[1739383411279,0.2057597,97187.0,97184.0,0.3608]
[1739383411472,0.07672,97186.0,97184.0,0.3608]
[1739383411871,0.07672,97186.0,97185.0,0.0609]
[1739383412072,0.2057615,97186.0,97185.0,0.0609]
[1739383412475,0.3608,97193.0,97179.0,0.0525]
[1739383412681,0.001,97186.0,97179.0,0.0525]
[1739383413180,0.3608,97180.0,97177.0,0.00015436]
[1739383413677,0.2057785,97178.0,97177.0,0.00015436]
[1739383414974,0.3628,97180.0,97166.0,0.0525]
[1739383415175,0.2058018,97167.0,97166.0,0.0525]
[1739383415384,0.2058018,97167.0,97165.0,0.0518]
[1739383415882,0.3608,97168.0,97155.0,0.0527]
[1739383416177,0.2058251,97156.0,97155.0,0.0527]
[1739383417689,0.006,97167.0,97157.0,0.2058222]
[1739383417985,0.2098011,97168.0,97159.0,0.2058185]
[1739383418285,0.2098011,97168.0,97155.0,0.41442]
[1739383418480,0.2098011,97168.0,97163.0,0.3608]
[1739383418681,0.2098011,97168.0,97164.0,0.1061]
[1739383418682,0.0141993,97168.0,97164.0,0.1061]
[1739383418881,0.0101993,97168.0,97164.0,0.1061]
[1739383419080,0.004,97167.0,97164.0,0.1061]
[1739383419590,0.2098028,97167.0,97164.0,0.1061]
[1739383420280,0.205806,97165.0,97164.0,0.1061]
[1739383421783,0.209806,97165.0,97164.0,0.1061]
[1739383422193,0.210806,97165.0,97164.0,0.1111]
[1739383422399,0.210806,97165.0,97164.0,0.005]
[1739383422788,0.2058252,97156.0,97155.0,0.0527]
[1739383424893,0.2088252,97156.0,97155.0,0.0527]
[1739383425290,0.005,97156.0,97155.0,0.0527]
[1739383425491,0.005,97156.0,97155.0,0.2585273]
[1739383425990,0.003,97156.0,97155.0,0.2585273]
[1739383426191,0.007,97156.0,97155.0,0.2585273]
[1739383426796,0.003,97156.0,97155.0,0.2595273]
[1739383426993,0.21883171,97161.0,97155.0,0.0537]
[1739383427200,0.21883171,97161.0,97160.0,0.2058167]
[1739383428401,0.22183171,97161.0,97160.0,0.2058167]
[1739383428795,0.2058252,97156.0,97155.0,0.0587]
[1739383429293,0.2058252,97156.0,97155.0,0.0527]
[1739383430092,0.2068252,97156.0,97155.0,0.0587]
[1739383431193,0.2068252,97156.0,97155.0,0.0597]
[1739383431592,0.2068252,97156.0,97155.0,0.0537]
[1739383431899,0.2148252,97156.0,97155.0,0.0537]
[1739383432397,0.2148252,97156.0,97155.0,0.001]
[1739383432606,0.004,97156.0,97154.0,0.00154374]
[1739383432804,0.2058273,97155.0,97154.0,0.00154374]
[1739383435101,0.2168273,97155.0,97154.0,0.00254374]
[1739383435404,0.011,97155.0,97154.0,0.00254374]
[1739383435592,0.2128463,97155.0,97154.0,0.00254374]
[1739383435798,0.2148463,97155.0,97154.0,0.00254374]
[1739383436502,0.2098463,97155.0,97154.0,0.00154374]
[1739383436705,0.011,97155.0,97154.0,0.00254374]
[1739383436905,0.011,97155.0,97154.0,0.20839254]
[1739383437105,0.2058215,97167.0,97155.0,0.01096]
[1739383437307,0.2058243,97166.0,97162.0,0.2058303]
[1739383437809,0.01315583,97171.0,97162.0,0.2058303]
[1739383438405,0.20583,97163.0,97162.0,0.2058303]
[1739383438906,0.20583,97163.0,97162.0,0.2068303]
[1739383439911,0.20683,97163.0,97162.0,0.2118303]
[1739383440798,0.20683,97163.0,97162.0,0.007]
[1739383441511,0.21083,97163.0,97162.0,0.006]
[1739383441707,0.2058449,97156.0,97155.0,0.01096]
[1739383441912,0.5666449,97156.0,97155.0,0.01096]
[1739383442105,0.2058471,97155.0,97154.0,0.00154374]
[1739383443407,0.2058852,97137.0,97136.0,0.18609174]
[1739383443611,0.5666852,97137.0,97136.0,0.18609174]
[1739383444912,0.5666852,97137.0,97127.0,0.31417137]
[1739383444913,0.3608,97137.0,97127.0,0.01095]
[1739383445112,0.48290709,97137.0,97127.0,0.01095]
[1739383445417,0.3608,97128.0,97127.0,0.01095]
[1739383445915,0.2059064,97127.0,97125.0,0.30322137]
[1739383446512,0.2059064,97127.0,97125.0,0.26964958]
[1739383447320,0.2059064,97127.0,97125.0,0.25706519]
[1739383447711,0.2059064,97127.0,97126.0,0.02573]
[1739383447908,0.21864162,97127.0,97125.0,0.13246519]
[1739383448112,0.2059614,97102.0,97100.0,0.52697034]
[1739383448310,0.3608,97101.0,97100.0,0.52605034]
[1739383449322,0.3608,97101.0,97100.0,0.53205034]
[1739383449917,0.3608,97101.0,97100.0,0.106]
[1739383450133,0.43744,97101.0,97100.0,0.106]
[1739383450317,0.3608,97101.0,97100.0,0.106]
[1739383451117,0.00015448,97111.0,97100.0,0.106]
[1739383451314,0.01251567,97126.0,97110.0,0.3608]
[1739383451514,0.01251567,97126.0,97119.0,0.5667216]
[1739383452627,0.2059099,97126.0,97119.0,0.3648]
[1739383452827,0.001,97121.0,97119.0,0.3648]
[1739383453125,0.07664,97120.0,97119.0,0.3648]
[1739383454619,0.07664,97120.0,97119.0,0.5707233]
[1739383454916,0.006,97121.0,97119.0,0.5667233]
[1739383455122,0.004,97120.0,97119.0,0.5667233]
[1739383455319,0.00015448,97130.0,97119.0,0.3608]
[1739383455519,0.0125232,97142.0,97138.0,0.2058828]
[1739383455721,0.2058563,97151.0,97140.0,0.3608]
[1739383456317,0.3608,97155.0,97140.0,0.3608]
[1739383456522,0.01451622,97147.0,97140.0,0.3608]
[1739383456722,0.01451622,97147.0,97140.0,0.5666779]